fUSD/lending_fUSD_20240614
["ID","MTS","AMOUNT","RATE_DAILY","PERIOD"]
[329486404,1718389875128,-500.0,0.00022465,3]
[329486405,1718389875146,-13937.63,0.00022465,3]
[329486406,1718389875158,-500.0,0.00022465,3]
[329486407,1718389875173,-10953.02,0.00022465,3]
[329486408,1718389875186,-500.0,0.00022465,3]
[329486409,1718389875204,-500.0,0.00022465,3]
[329486410,1718389875221,-1270.34,0.00022465,3]
[329486411,1718389875232,-500.0,0.00022465,3]
[329486412,1718389875244,-7246.49,0.00022465,3]
[329486413,1718389875255,-500.0,0.00022465,3]
[329486414,1718389875270,-1133.38,0.00022465,3]
[329486415,1718389875281,-1354.57,0.00022465,3]
[329486416,1718389875292,-3990.89,0.00022465,3]
[329486417,1718389875304,-500.0,0.00022465,3]
[329486418,1718389875322,-500.0,0.00022465,3]
[329486419,1718389875340,-500.0,0.00022465,3]
[329486420,1718389875353,-636.65,0.00022465,3]
[329486421,1718389875370,-500.0,0.00022465,3]
[329486422,1718389875382,-500.0,0.00022465,3]
[329486423,1718389875397,-1215.22,0.00022465,3]
[329486424,1718389875409,-500.0,0.00022465,3]
[329486425,1718389875439,-500.0,0.00022465,3]
[329486426,1718389875464,-500.0,0.00022465,3]
[329486427,1718389875479,-1837.53,0.00022465,3]
[329486428,1718389875491,-1349.6,0.00022465,3]
[329486429,1718389875502,-2196.07,0.00022465,3]
[329486430,1718389875514,-2501.07,0.00022465,3]
[329486431,1718389875525,-500.0,0.00022465,3]
[329486432,1718389875540,-711.66,0.00022465,3]
[329486433,1718389875551,-246.76225529,0.00022465,3]
[329486434,1718389875562,-4883.04,0.00022465,3]
[329486435,1718389875574,-500.0,0.00022465,3]
[329486436,1718389875591,-500.0,0.00022465,3]
[329486437,1718389875606,-500.0,0.00022465,2]
[329486438,1718389875617,-500.0,0.00022465,3]
[329486439,1718389875642,-658.37,0.00022465,3]
[329486440,1718389875672,-1017.78,0.00022465,3]
[329486441,1718389875684,-4507.79,0.00022465,3]
[329486442,1718389875706,-1173.46,0.00022465,3]
[329486443,1718389875717,-577.02,0.00022465,3]
[329486444,1718389875734,-227.48681831,0.00022465,3]
[329486445,1718389875746,-1838.38,0.00022465,3]
[329486446,1718389875757,-611.63,0.00022465,3]
[329486447,1718389875768,-500.0,0.00022465,3]
[329486448,1718389875779,-4134.77,0.00022465,3]
[329486449,1718389875790,-500.0,0.00022465,3]
[329486450,1718389875816,-502.8,0.00022465,3]
[329486451,1718389875826,-3382.42,0.00022465,3]
[329486452,1718389875837,-500.0,0.00022465,3]
[329486453,1718389875848,-611.19,0.00022465,3]
[329486454,1718389875861,-4489.2,0.00022465,3]
[329486455,1718389875871,-4166.83,0.00022465,3]
[329486456,1718389875883,-500.0,0.00022465,3]
[329486457,1718389875897,-1595.83,0.00022465,3]
[329486458,1718389875908,-500.0,0.00022465,3]
[329486459,1718389875918,-500.0,0.00022465,3]
[329486460,1718389875931,-5328.26,0.00022465,3]
[329486461,1718389875941,-2779.11,0.00022465,3]
[329486462,1718389875953,-377.73360102,0.00022465,3]
[329486463,1718389875966,-4572.35,0.00022465,3]
[329486464,1718389875985,-1016.46,0.00022465,3]
[329486465,1718389876001,-1949.2,0.00022465,3]
[329486466,1718389876021,-500.0,0.00022465,3]
[329486467,1718389876033,-880.74,0.00022465,3]
[329486468,1718389876045,-170.46016099,0.00022465,3]
[329486469,1718389876056,-3544.94,0.00022465,3]
[329486470,1718389876078,-953.75,0.00022465,3]
[329486471,1718389876090,-500.0,0.00022465,3]
[329486472,1718389876101,-695.88,0.00022465,3]
[329486473,1718389876119,-770.95,0.00022465,3]
[329486474,1718389876135,-1364.63,0.00022465,3]
[329486475,1718389876153,-805.44,0.00022465,3]
[329486476,1718389876167,-1128.93,0.00022465,3]
[329486477,1718389876186,-1046.51,0.00022465,3]
[329486478,1718389876202,-174.47927003,0.00022465,3]
[329486479,1718389876214,-1736.76,0.00022465,3]
[329486480,1718389876235,-601.3,0.00022465,3]
[329486481,1718389876271,-315.22558485,0.00022465,3]
[329486482,1718389876306,-3300.93,0.00022465,3]
[329486483,1718389876334,-1216.3,0.00022465,3]
[329486484,1718389876345,-500.0,0.00022465,3]
[329486485,1718389876359,-1160.29,0.00022465,3]
[329486486,1718389876383,-500.0,0.00022465,3]
[329486487,1718389876396,-302.76133694,0.00022465,3]
[329486488,1718389876409,-1677.17,0.00022465,3]
[329486489,1718389876423,-644.97,0.00022465,3]
[329486490,1718389876435,-1549.05,0.00022465,3]
[329486491,1718389876447,-2211.66,0.00022465,3]
[329486492,1718389876461,-812.71,0.00022465,3]
[329486493,1718389876473,-2078.73,0.00022465,3]
[329486494,1718389876491,-500.0,0.00022465,3]
[329486495,1718389876503,-500.0,0.00022465,3]
[329486496,1718389876519,-584.14,0.00022465,3]
[329486497,1718389876551,-500.0,0.00022465,3]
[329486498,1718389876565,-617.71,0.00022465,3]
[329486499,1718389876576,-2574.5,0.00022465,3]
[329486500,1718389876589,-646.5,0.00022465,3]
[329486501,1718389876601,-500.0,0.00022465,3]
[329486502,1718389876616,-1102.49,0.00022465,3]
[329486503,1718389876627,-1827.22,0.00022465,3]
[329486504,1718389876638,-500.0,0.00022465,3]
[329486505,1718389876652,-7582.02,0.00022465,3]
[329486506,1718389876665,-12397.09,0.00022465,3]
[329486507,1718389876676,-500.0,0.00022465,3]
[329486508,1718389876690,-500.0,0.00022465,3]
[329486509,1718389876710,-560.71,0.00022465,3]
[329486510,1718389876738,-500.0,0.00022465,3]
[329486511,1718389876749,-500.0,0.00022465,3]
[329486512,1718389876762,-500.0,0.00022465,3]
[329486513,1718389876773,-11804.34,0.00022465,3]
[329486514,1718389876785,-500.0,0.00022465,3]
[329486515,1718389876798,-500.0,0.00022465,3]
[329486516,1718389876809,-503.01,0.000225,2]
[329486517,1718389876823,-17137.63814886,0.00022552,2]
[329486518,1718389876834,-525.42,0.00022582,2]
[329486519,1718389876848,-10384.11248729,0.00022639,2]
[329486520,1718389876858,-362.0652727,0.00022639,2]
[329486521,1718389876875,-1476.91219106,0.00022639,2]
[329486522,1718389876888,-500.0,0.00022723,2]
[329486523,1718389876903,-500.0,0.00022723,2]
[329486524,1718389876918,-797.0,0.00022723,2]
[329486525,1718389876941,-500.0,0.00022738,2]
[329486526,1718389876952,-1471.62,0.00022738,3]
[329486527,1718389876964,-507.20601971,0.00022739,3]
[329486528,1718389876983,-500.0,0.00022739,3]
[329486529,1718389877003,-724.11,0.00022739,3]
[329486530,1718389877015,-500.0,0.00022739,3]
[329486531,1718389877027,-500.0,0.00022739,3]
[329486532,1718389877038,-226.13142325,0.00022739,3]
[329486533,1718389877057,-162.3720487,0.00022739,3]
[329486534,1718389877068,-355.02912688,0.00022739,3]
[329486535,1718389877081,-500.0,0.00022739,3]
[329486536,1718389877094,-500.0,0.00022739,2]
[329486537,1718389877109,-500.0,0.00022739,3]
[329486538,1718389877121,-500.0,0.00022739,3]
[329486539,1718389877135,-500.0,0.00022739,3]
[329486540,1718389877148,-500.0,0.00022739,3]
[329486541,1718389877161,-500.0,0.00022739,3]
[329486542,1718389877173,-541.87333643,0.00022739,3]
[329486543,1718389877187,-500.0,0.00022739,3]
[329486544,1718389877265,-500.0,0.00022739,3]
[329486545,1718389877282,-500.0,0.00022739,3]
[329486546,1718389877293,-500.0,0.00022739,3]
[329486547,1718389877313,-367.81866819,0.00022739,3]
[329486548,1718389877325,-500.0,0.00022739,3]
[329486549,1718389877337,-500.0,0.00022739,3]
[329486550,1718389877356,-500.0,0.00022739,3]
[329486551,1718389877374,-500.0,0.00022739,2]
[329486552,1718389877386,-500.0,0.00022739,3]
[329486553,1718389877427,-500.0,0.00022739,3]
[329486554,1718389877440,-500.0,0.00022739,3]
[329486555,1718389877454,-500.0,0.00022739,3]
[329486556,1718389877466,-688.1,0.00022739,3]
[329486557,1718389877482,-500.0,0.00022739,3]
[329486558,1718389877497,-560.85,0.00022739,3]
[329486559,1718389877510,-500.0,0.00022739,3]
[329486560,1718389877521,-500.0,0.00022739,3]
[329486561,1718389877544,-500.0,0.00022739,3]
[329486562,1718389877559,-500.0,0.00022739,3]
[329486563,1718389877581,-619.12344451,0.00022739,3]
[329486564,1718389877594,-500.0,0.00022739,3]
[329486565,1718389877605,-500.0,0.00022739,3]
[329486566,1718389877618,-893.93,0.00022739,3]
[329486567,1718389877630,-525.7,0.00022739,3]
[329486568,1718389877652,-500.0,0.00022739,3]
[329486569,1718389877665,-785.49,0.00022739,3]
[329486570,1718389877679,-500.0,0.00022739,3]
[329486571,1718389877690,-986.68,0.00022739,3]
[329486572,1718389877701,-500.0,0.00022739,3]
[329486573,1718389877712,-500.0,0.00022739,3]
[329486574,1718389877724,-500.0,0.00022739,3]
[329486575,1718389877739,-500.0,0.00022739,3]
[329486576,1718389877757,-500.0,0.00022739,3]
[329486577,1718389877773,-500.0,0.00022739,3]
[329486578,1718389877791,-500.0,0.00022739,3]
[329486579,1718389877803,-500.0,0.00022739,3]
[329486580,1718389877817,-500.0,0.00022739,3]
[329486581,1718389877829,-448.9431249,0.00022739,3]
[329486582,1718389877842,-500.0,0.00022739,3]
[329486583,1718389877854,-277.19359307,0.00022739,3]
[329486584,1718389877874,-500.0,0.00022739,3]
[329486585,1718389877889,-500.0,0.00022739,3]
[329486586,1718389877901,-500.0,0.00022739,3]
[329486587,1718389877917,-500.0,0.00022739,3]
[329486588,1718389877930,-500.0,0.00022739,3]
[329486589,1718389877943,-500.0,0.00022739,3]
[329486590,1718389877956,-500.0,0.00022739,3]
[329486591,1718389877970,-670.2,0.00022739,3]
[329486592,1718389877984,-500.0,0.00022739,3]
[329486593,1718389878003,-500.0,0.00022739,3]
[329486594,1718389878033,-500.0,0.00022739,3]
[329486595,1718389878067,-500.0,0.00022739,3]
[329486596,1718389878081,-500.0,0.00022739,3]
[329486597,1718389878098,-460.65025602,0.00022739,3]
[329486598,1718389878112,-500.0,0.00022739,3]
[329486599,1718389878123,-500.0,0.00022739,3]
[329486600,1718389878142,-500.0,0.00022739,3]
[329486601,1718389878153,-500.0,0.00022739,3]
[329486602,1718389878164,-500.0,0.00022739,3]
[329486603,1718389878177,-500.0,0.00022739,3]
[329486604,1718389878189,-500.0,0.00022739,3]
[329486605,1718389878202,-500.0,0.00022739,3]
[329486606,1718389878214,-500.0,0.00022739,3]
[329486607,1718389878226,-500.0,0.00022739,3]
[329486608,1718389878246,-500.0,0.00022739,3]
[329486609,1718389878258,-500.0,0.00022739,3]
[329486610,1718389878270,-500.0,0.00022739,3]
[329486611,1718389878283,-500.0,0.00022739,3]
[329486612,1718389878308,-500.0,0.00022739,3]
[329486613,1718389878326,-500.0,0.00022739,3]
[329486614,1718389878349,-500.0,0.00022739,3]
[329486615,1718389878367,-500.0,0.00022739,3]
[329486616,1718389878381,-500.0,0.00022739,3]
[329486617,1718389878393,-500.0,0.00022739,3]
[329486618,1718389878440,-500.0,0.00022739,3]
[329486619,1718389878458,-500.0,0.00022739,3]
[329486620,1718389878471,-500.0,0.00022739,3]
[329486621,1718389878497,-500.0,0.00022739,3]
[329486622,1718389878537,-500.0,0.00022739,3]
[329486623,1718389878580,-500.0,0.00022739,3]
[329486624,1718389878606,-500.0,0.00022739,3]
[329486625,1718389878618,-500.0,0.00022739,3]
[329486626,1718389878629,-633.08,0.00022739,3]
[329486627,1718389878642,-500.0,0.00022739,3]
[329486628,1718389878653,-500.0,0.00022739,3]
[329486629,1718389878666,-500.0,0.00022739,3]
[329486630,1718389878682,-500.0,0.00022739,3]
[329486631,1718389878695,-500.0,0.00022739,3]
[329486632,1718389878727,-500.0,0.00022739,3]
[329486633,1718389878759,-500.0,0.00022739,3]
[329486634,1718389878780,-500.0,0.00022739,3]
[329486635,1718389878797,-500.0,0.00022739,3]
[329486636,1718389878811,-500.0,0.00022739,3]
[329486637,1718389878825,-500.0,0.00022739,3]
[329486638,1718389878846,-1325.69,0.00022739,3]
[329486639,1718389878880,-196.25628351,0.00022739,3]
[329486640,1718389878894,-480.32418673,0.00022739,3]
[329486641,1718389878906,-665.04,0.00022739,3]
[329486642,1718389878928,-500.0,0.00022739,3]
[329486643,1718389878941,-500.0,0.00022739,3]
[329486644,1718389878956,-500.0,0.00022739,3]
[329486645,1718389878970,-500.0,0.00022739,3]
[329486646,1718389878987,-500.0,0.00022739,3]
[329486647,1718389878998,-500.0,0.00022739,3]
[329486648,1718389879011,-500.0,0.00022739,3]
[329486649,1718389879023,-500.0,0.00022739,3]
[329486650,1718389879047,-500.0,0.00022739,3]
[329486651,1718389879062,-500.0,0.00022739,3]
[329486652,1718389879077,-500.0,0.00022739,3]
[329486653,1718389879097,-592.49,0.00022739,3]
[329486654,1718389879123,-630.8,0.00022739,3]
[329486655,1718389879140,-573.93,0.00022739,3]
[329486656,1718389879183,-500.0,0.00022739,3]
[329486657,1718389879213,-500.0,0.00022739,3]
[329486658,1718389879236,-500.0,0.00022739,3]
[329486659,1718389879250,-736.46,0.00022739,3]
[329486660,1718389879272,-500.0,0.00022739,3]
[329486661,1718389879285,-625.25,0.00022739,3]
[329486662,1718389879339,-500.0,0.00022739,3]
[329486663,1718389879366,-500.0,0.00022739,3]
[329486664,1718389879383,-500.0,0.00022739,3]
[329486665,1718389879399,-500.0,0.00022739,3]
[329486666,1718389879412,-643.9321869,0.00022739,3]
[329486667,1718389879442,-535.08317915,0.00022739,3]
[329486668,1718389879474,-500.0,0.00022739,3]
[329486669,1718389879522,-500.0,0.00022739,3]
[329486670,1718389879543,-500.0,0.00022739,3]
[329486671,1718389879558,-500.0,0.00022739,3]
[329486672,1718389879586,-500.0,0.00022739,3]
[329486673,1718389879632,-500.0,0.00022739,3]
[329486674,1718389879654,-500.0,0.00022739,3]
[329486675,1718389879671,-500.0,0.00022739,3]
[329486676,1718389879692,-500.0,0.00022739,3]
[329486677,1718389879706,-500.0,0.00022739,3]
[329486678,1718389879723,-500.0,0.00022739,3]
[329486679,1718389879737,-500.0,0.00022739,3]
[329486680,1718389879767,-500.0,0.00022739,3]
[329486681,1718389879781,-524.97,0.00022739,3]
[329486682,1718389879807,-500.0,0.00022739,3]
[329486683,1718389880006,-529.9064517,0.00022739,3]
[329486684,1718389880024,-344.71545593,0.00022739,3]
[329486685,1718389880038,-542.0982882,0.00022739,3]
[329486686,1718389880052,-500.0,0.00022739,3]
[329486687,1718389880081,-500.0,0.00022739,3]
[329486688,1718389880097,-500.0,0.00022739,3]
[329486689,1718389880111,-500.0,0.00022739,3]
[329486690,1718389880130,-1540.33,0.00022739,3]
[329486691,1718389880141,-500.0,0.00022739,3]
[329486692,1718389880154,-500.0,0.00022739,3]
[329486693,1718389880172,-638.32,0.00022739,3]
[329486694,1718389880183,-500.0,0.00022739,3]
[329486695,1718389880201,-710.8,0.00022739,3]
[329486696,1718389880215,-184.47907095,0.00022739,3]
[329486697,1718389880233,-500.0,0.00022739,3]
[329486698,1718389880252,-380.46943362,0.00022739,3]
[329486699,1718389880271,-500.0,0.00022739,3]
[329486700,1718389880283,-500.0,0.00022739,3]
[329486701,1718389880296,-500.0,0.00022739,3]
[329486702,1718389880313,-553.91,0.00022739,3]
[329486703,1718389880331,-500.0,0.00022739,3]
[329486704,1718389880348,-522.77860734,0.00022739,3]
[329486705,1718389880358,-500.0,0.00022739,3]
[329486706,1718389880379,-511.03020442,0.00022739,3]
[329486707,1718389880391,-500.0,0.00022739,3]
[329486708,1718389880411,-500.0,0.00022739,3]
[329486709,1718389880424,-500.0,0.00022739,3]
[329486710,1718389880445,-500.0,0.00022739,3]
[329486711,1718389880462,-500.0,0.00022739,3]
[329486712,1718389880474,-500.0,0.00022739,3]
[329486713,1718389880486,-792.27,0.00022739,3]
[329486714,1718389880497,-500.0,0.00022739,3]
[329486715,1718389880508,-500.0,0.00022739,3]
[329486716,1718389880520,-500.0,0.00022739,3]
[329486717,1718389880540,-2726.63,0.00022739,3]
[329486718,1718389880551,-1044.71,0.00022739,3]
[329486719,1718389880561,-694.54,0.00022739,3]
[329486720,1718389880572,-537.13,0.00022739,3]
[329486721,1718389880587,-152.824507,0.00022739,7]
[329486722,1718389880597,-500.0,0.00022739,3]
[329486723,1718389880610,-1944.71,0.00022739,3]
[329486724,1718389880628,-500.0,0.00022739,3]
[329486725,1718389880641,-1206.05,0.00022739,3]
[329486726,1718389880659,-514.03661697,0.00022739,3]
[329486727,1718389880677,-500.0,0.00022739,3]
[329486728,1718389880687,-1028.61,0.00022739,3]
[329486729,1718389880698,-500.0,0.00022739,3]
[329486730,1718389880716,-500.0,0.00022739,3]
[329486731,1718389880730,-500.0,0.00022739,3]
[329486732,1718389880751,-2311.73,0.00022739,3]
[329486733,1718389880765,-1089.25,0.00022739,3]
[329486734,1718389880788,-1607.69,0.00022739,3]
[329486735,1718389880804,-737.12,0.00022739,3]
[329486736,1718389880816,-160.825694,0.00022739,7]
[329486737,1718389880830,-500.0,0.00022739,3]
[329486738,1718389880846,-2332.61,0.00022739,3]
[329486739,1718389880863,-4949.66,0.00022739,3]
[329486740,1718389880882,-500.0,0.00022739,3]
[329486741,1718389880899,-7412.39,0.00022739,3]
[329486742,1718389880913,-1264.08,0.00022739,3]
[329486743,1718389880931,-500.0,0.00022739,3]
[329486744,1718389880943,-2536.17,0.00022739,3]
[329486745,1718389880961,-3546.14,0.00022739,3]
[329486746,1718389880975,-7412.61,0.00022739,3]
[329486747,1718389880987,-151.0,0.00022739,7]
[329486748,1718389880998,-5511.69,0.00022739,3]
[329486749,1718389881015,-756.16,0.00022739,3]
[329486750,1718389881030,-1560.64,0.00022739,3]
[329486751,1718389881043,-5585.52,0.00022739,3]
[329486752,1718389881056,-500.0,0.00022739,3]
[329486753,1718389881082,-500.0,0.00022739,3]
[329486754,1718389881095,-500.0,0.00022739,3]
[329486755,1718389881110,-500.0,0.00022739,3]
[329486756,1718389881137,-613.07,0.00022739,3]
[329486757,1718389881172,-500.0,0.00022739,3]
[329486758,1718389881202,-1075.19,0.00022739,3]
[329486759,1718389881232,-500.0,0.00022739,3]
[329486760,1718389881244,-1229.17,0.00022739,3]
[329486761,1718389881258,-350.92,0.00022739,3]
[329486762,1718389881275,-554.3,0.00022739,3]
[329486763,1718389881289,-500.0,0.00022739,3]
[329486764,1718389881314,-736.41,0.00022739,3]
[329486765,1718389881344,-8836.62,0.00022739,3]
[329486766,1718389881358,-549.06,0.00022739,3]
[329486767,1718389881382,-500.0,0.00022739,3]
[329486768,1718389881398,-1379.69,0.00022739,3]
[329486769,1718389881428,-500.0,0.00022739,3]
[329486770,1718389881443,-1932.08,0.00022739,3]
[329486771,1718389881458,-455.23,0.00022739,3]
[329486772,1718389881495,-13937.63,0.00022739,3]
[329486773,1718389881516,-500.0,0.00022739,3]
[329486774,1718389881545,-10953.02,0.00022739,3]
[329486775,1718389881564,-500.0,0.00022739,3]
[329486776,1718389881575,-500.0,0.00022739,3]
[329486777,1718389881589,-1270.34,0.00022739,3]
[329486778,1718389881609,-500.0,0.00022739,3]
[329486779,1718389881644,-7246.49,0.00022739,3]
[329486780,1718389881664,-500.0,0.00022739,3]
[329486781,1718389881688,-1133.38,0.00022739,3]
[329486782,1718389881704,-1354.57,0.00022739,3]
[329486783,1718389881735,-3990.89,0.00022739,3]
[329486784,1718389881763,-500.0,0.00022739,3]
[329486785,1718389881788,-441.40969891,0.00022739,3]
[329486786,1718389881816,-500.0,0.00022739,3]
[329486787,1718389881836,-636.65,0.00022739,3]
[329486788,1718389881859,-500.0,0.00022739,3]
[329486789,1718389881924,-500.0,0.00022739,3]
[329486790,1718389881947,-1215.22,0.00022739,3]
[329486791,1718389881971,-500.0,0.00022739,3]
[329486792,1718389881985,-500.0,0.00022739,3]
[329486793,1718389881996,-500.0,0.00022739,3]
[329486794,1718389882008,-1837.53,0.00022739,3]
[329486795,1718389882029,-1349.6,0.00022739,3]
[329486796,1718389882047,-2196.07,0.00022739,3]
[329486797,1718389882069,-2501.07,0.00022739,3]
[329486798,1718389882087,-500.0,0.00022739,3]
[329486799,1718389882100,-151.0,0.00022739,7]
[329486800,1718389882111,-500.0,0.00022739,3]
[329486801,1718389882126,-4883.04,0.00022739,3]
[329486802,1718389882147,-711.66,0.00022739,3]
[329486803,1718389882171,-500.0,0.00022739,3]
[329486804,1718389882193,-151.830152,0.00022739,7]
[329486805,1718389882212,-500.0,0.00022739,3]
[329486806,1718389882224,-500.0,0.00022739,2]
[329486807,1718389882244,-658.37,0.00022739,3]
[329486808,1718389882258,-152.466003,0.00022739,7]
[329486809,1718389882281,-1017.78,0.00022739,3]
[329486810,1718389882295,-4507.79,0.00022739,3]
[329486811,1718389882310,-1173.46,0.00022739,3]
[329486812,1718389882325,-1838.38,0.00022739,3]
[329486813,1718389882357,-611.63,0.00022739,3]
[329486814,1718389882372,-500.0,0.00022739,3]
[329486815,1718389882386,-4134.77,0.00022739,3]
[329486816,1718389882442,-500.0,0.00022739,3]
[329486817,1718389882481,-502.8,0.00022739,3]
[329486818,1718389882544,-3382.42,0.00022739,3]
[329486819,1718389882572,-500.0,0.00022739,3]
[329486820,1718389882596,-611.19,0.00022739,3]
[329486821,1718389882625,-4489.2,0.00022739,3]
[329486822,1718389882653,-4166.83,0.00022739,3]
[329486823,1718389882684,-1595.83,0.00022739,3]
[329486824,1718389882713,-500.0,0.00022739,3]
[329486825,1718389882751,-500.0,0.00022739,3]
[329486826,1718389882772,-5328.26,0.00022739,3]
[329486827,1718389882799,-2779.11,0.00022739,3]
[329486828,1718389882819,-4572.35,0.00022739,3]
[329486829,1718389882852,-1016.46,0.00022739,3]
[329486830,1718389882865,-1949.2,0.00022739,3]
[329486831,1718389882876,-500.0,0.00022739,3]
[329486832,1718389882892,-880.74,0.00022739,3]
[329486833,1718389882911,-3544.94,0.00022739,3]
[329486834,1718389882924,-953.75,0.00022739,3]
[329486835,1718389882935,-500.0,0.00022739,3]
[329486836,1718389882948,-695.88,0.00022739,3]
[329486837,1718389882960,-770.95,0.00022739,3]
[329486838,1718389882977,-1364.63,0.00022739,3]
[329486839,1718389882991,-1128.93,0.00022739,3]
[329486840,1718389883004,-805.44,0.00022739,3]
[329486841,1718389883015,-1046.51,0.00022739,3]
[329486842,1718389883034,-1736.76,0.00022739,3]
[329486843,1718389883046,-601.3,0.00022739,3]
[329486844,1718389883058,-3300.93,0.00022739,3]
[329486845,1718389883069,-1216.3,0.00022739,3]
[329486846,1718389883082,-500.0,0.00022739,3]
[329486847,1718389883094,-1160.29,0.00022739,3]
[329486848,1718389883105,-500.0,0.00022739,3]
[329486849,1718389883117,-644.97,0.00022739,3]
[329486850,1718389883129,-1677.17,0.00022739,3]
[329486851,1718389883140,-1549.05,0.00022739,3]
[329486852,1718389883164,-2211.66,0.00022739,3]
[329486853,1718389883178,-812.71,0.00022739,3]
[329486854,1718389883189,-2078.73,0.00022739,3]
[329486855,1718389883200,-500.0,0.00022739,3]
[329486856,1718389883212,-584.14,0.00022739,3]
[329486857,1718389883227,-500.0,0.00022739,3]
[329486858,1718389883252,-617.71,0.00022739,3]
[329486859,1718389883265,-2574.5,0.00022739,3]
[329486860,1718389883278,-646.5,0.00022739,3]
[329486861,1718389883293,-500.0,0.00022739,3]
[329486862,1718389883314,-1102.49,0.00022739,3]
[329486863,1718389883338,-1827.22,0.00022739,3]
[329486864,1718389883365,-7582.02,0.00022739,3]
[329486865,1718389883402,-12397.09,0.00022739,3]
[329486866,1718389883424,-500.0,0.00022739,3]
[329486867,1718389883437,-151.0,0.00022739,7]
[329486868,1718389883452,-560.71,0.00022739,3]
[329486869,1718389883466,-500.0,0.00022739,3]
[329486870,1718389883479,-500.0,0.00022739,3]
[329486871,1718389883492,-500.0,0.00022739,3]
[329486872,1718389883503,-151.0,0.00022739,7]
[329486873,1718389883521,-11804.34,0.00022739,3]
[329486874,1718389883532,-151.0,0.00022739,7]
[329486875,1718389883546,-151.0,0.00022739,7]
[329486876,1718389883559,-500.0,0.00022739,3]
[329486877,1718389883571,-500.0,0.00022739,3]
[329486878,1718389883582,-3248.44,0.00022756,2]
[329486879,1718389883592,-302.78,0.00022763,2]
[329486880,1718389883609,-190.75780564,0.00022775,2]
[329486881,1718389883619,-184.37757925,0.00022872,2]
[329486882,1718389883630,-176.30096122,0.00023,2]
[329486883,1718389883641,-1300.0,0.00023,2]
[329486884,1718389883656,-500.0,0.00023012,2]
[329486885,1718389883675,-1471.62,0.00023012,3]
[329486886,1718389883688,-1471.62,0.00023012,3]
[329486887,1718389883699,-724.11,0.00023013,3]
[329486888,1718389883737,-500.0,0.00023013,3]
[329486889,1718389883747,-500.0,0.00023013,3]
[329486890,1718389883758,-500.0,0.00023013,2]
[329486891,1718389883771,-500.0,0.00023013,3]
[329486892,1718389883782,-500.0,0.00023013,3]
[329486893,1718389883793,-500.0,0.00023013,3]
[329486894,1718389883820,-500.0,0.00023013,3]
[329486895,1718389883832,-500.0,0.00023013,3]
[329486896,1718389883849,-500.0,0.00023013,3]
[329486897,1718389883869,-500.0,0.00023013,2]
[329486898,1718389883886,-500.0,0.00023013,3]
[329486899,1718389883899,-688.1,0.00023013,3]
[329486900,1718389883924,-500.0,0.00023013,3]
[329486901,1718389883949,-560.85,0.00023013,3]
[329486902,1718389883963,-221.01472609,0.00023013,3]
[329486903,1718389883974,-500.0,0.00023013,3]